fUSD/lending_fUSD_20260521
["ID","MTS","AMOUNT","RATE_DAILY","PERIOD"]
[422772013,1779373631000,-900.0,0.000142,5]
[422772005,1779373631000,-150.0,0.00013987,2]
[422772033,1779373632000,-319.79084614,0.0001446,2]
[422772025,1779373632000,-150.0,0.00014362,2]
[422772029,1779373632000,-150.0,0.00014445,2]
[422772034,1779373632000,-150.0,0.00014487,2]
[422772031,1779373632000,-2500.0,0.0001446,2]
[422772030,1779373632000,-2500.0,0.0001446,2]
[422772032,1779373632000,-600.0,0.0001446,2]
[422772028,1779373632000,-150.0,0.00014404,2]
[422772026,1779373632000,-150.0,0.00014362,2]
[422772020,1779373632000,-150.0,0.00014279,2]
[422772024,1779373632000,-300.0,0.00014322,2]
[422772021,1779373632000,-2051.22,0.00014292,2]
[422772019,1779373632000,-600.0,0.0001425,2]
[422772018,1779373632000,-2500.0,0.0001425,2]
[422772017,1779373632000,-300.0,0.00014249,2]
[422772014,1779373632000,-300.0,0.00014225,2]
[422772016,1779373632000,-3558.82,0.00014238,2]
[422772015,1779373632000,-150.0,0.00014237,2]
[422772023,1779373632000,-300.0,0.00014322,2]
[422772035,1779373632000,-150.0,0.00014528,2]
[422772022,1779373632000,-150.0,0.0001432,2]
[422772038,1779373632000,-150.0,0.00014612,2]
[422772036,1779373632000,-150.0,0.0001457,2]
[422772057,1779373632000,-150.0,0.00014945,2]
[422772056,1779373632000,-1492.88840834,0.00014937,2]
[422772054,1779373632000,-1310.56267714,0.000149,2]
[422772055,1779373632000,-150.0,0.00014903,2]
[422772053,1779373632000,-608.45480187,0.000149,2]
[422772052,1779373632000,-4389.46820633,0.000149,2]
[422772050,1779373632000,-15053.01362894,0.000149,2]
[422772051,1779373632000,-1072.31915088,0.000149,2]
[422772049,1779373632000,-207.0136216,0.000149,2]
[422772047,1779373632000,-19864.07747484,0.000149,3]
[422772027,1779373632000,-166.66,0.00014384,2]
[422772045,1779373632000,-174.0,0.00014877,2]
[422772046,1779373632000,-2500.0,0.000149,2]
[422772048,1779373632000,-29278.80804094,0.000149,2]
[422772043,1779373632000,-150.0,0.0001482,2]
[422772044,1779373632000,-150.0,0.00014861,2]
[422772042,1779373632000,-150.0,0.00014778,2]
[422772041,1779373632000,-150.0,0.00014737,2]
[422772037,1779373632000,-200.0,0.00014584,2]
[422772040,1779373632000,-150.0,0.00014695,2]
[422772039,1779373632000,-150.0,0.00014653,2]
[422772058,1779373633000,-179.89,0.00014985,2]
[422772059,1779373633000,-392.768,0.00014985,2]
[422772061,1779373633000,-57527.1277554,0.00014991,2]
[422772062,1779373633000,-66593.3120555,0.00014993,2]
[422772064,1779373633000,-500.0,0.00014999,2]
[422772063,1779373633000,-16910.2949929,0.00014993,2]
[422772060,1779373633000,-237.52073193,0.00014986,2]
[422772065,1779373633000,-500.0,0.00014999,2]
[422772068,1779373633000,-530.30762481,0.00014999,2]
[422772069,1779373633000,-500.0,0.00014999,2]
[422772067,1779373633000,-500.0,0.00014999,2]
[422772071,1779373633000,-279.75087362,0.00014999,2]
[422772070,1779373633000,-150.0,0.00014999,2]
[422772066,1779373633000,-500.0,0.00014999,2]
[422772072,1779373633000,-755655.4897526,0.00015,2]
[422772086,1779373834000,-1053.11267248,0.00014299,2]
[422772085,1779373834000,-146.88732752,0.00014299,2]
[422772096,1779373834000,-602.05202373,0.000144,5]
[422772097,1779373834000,-311.3616053,0.000144,2]
[422772080,1779373834000,-600.0,0.000142,5]
[422772095,1779373834000,-1197.94797627,0.000144,5]
[422772094,1779373834000,-1627.1628407,0.000144,5]
[422772093,1779373834000,-1172.8371593,0.000144,5]
[422772090,1779373834000,-2500.0,0.0001431,2]
[422772092,1779373834000,-808.24430291,0.0001431,2]
[422772091,1779373834000,-1691.75569709,0.0001431,2]
[422772084,1779373834000,-300.0,0.0001425,2]
[422772089,1779373834000,-300.0,0.00014309,2]
[422772087,1779373834000,-1900.0,0.000143,5]
[422772083,1779373834000,-801.98196542,0.00014225,2]
[422772082,1779373834000,-894.17975368,0.00014225,2]
[422772081,1779373834000,-803.8382809,0.00014225,2]
[422772098,1779373834000,-3800.0,0.000145,5]
[422772088,1779373834000,-1200.0,0.000143,5]
[422772100,1779373834000,-150.0,0.00014599,2]
[422772110,1779373834000,-2500.0,0.000149,2]
[422772105,1779373834000,-2879.0666166,0.000148,2]
[422772121,1779373834000,-250.0,0.00015,2]
[422772120,1779373834000,-303.72702952,0.00015,2]
[422772119,1779373834000,-1081.52417762,0.00015,2]
[422772118,1779373834000,-2287.51677326,0.00015,2]
[422772117,1779373834000,-58352.24946915,0.00015,2]
[422772115,1779373834000,-223.49678951,0.0001499,2]
[422772102,1779373834000,-3000.0,0.000146,5]
[422772114,1779373834000,-223.49678951,0.0001499,2]
[422772112,1779373834000,-9830.84822189,0.000149,2]
[422772116,1779373834000,-12333.9867823,0.00014991,2]
[422772109,1779373834000,-600.0,0.000149,5]
[422772108,1779373834000,-900.0,0.000149,5]
[422772107,1779373834000,-600.0,0.000148,5]
[422772106,1779373834000,-900.0,0.000148,5]
[422772104,1779373834000,-600.0,0.000147,5]
[422772099,1779373834000,-2400.0,0.000145,5]
[422772103,1779373834000,-900.0,0.000147,5]
[422772101,1779373834000,-4700.0,0.000146,5]
[422772113,1779373834000,-223.49678951,0.0001499,2]
[422772111,1779373834000,-1048.02014107,0.000149,2]
[422772159,1779373838000,-1887.80242846,0.00015,2]
[422772153,1779373838000,-1014.149965,0.00015,2]
[422772154,1779373838000,-28620.3152665,0.00015,2]
[422772155,1779373838000,-312.50730124,0.00015,2]
[422772157,1779373838000,-1381.56113524,0.00015,2]
[422772156,1779373838000,-289.4491554,0.00015,2]
[422772160,1779373838000,-648.97359092,0.00015,2]
[422772162,1779373838000,-1021.25254495,0.00015,2]
[422772161,1779373838000,-386182.68489302,0.00015,2]
[422772163,1779373838000,-451.67184737,0.00015,2]
[422772158,1779373838000,-79999.99999997,0.00015,2]
[422772293,1779373844000,-1066.82646772,0.00015,2]
[422772295,1779373844000,-59212.94147009,0.00015,2]
[422772292,1779373844000,-77.1198493,0.00015,2]
[422772294,1779373844000,-658.92170083,0.00015,2]
[422772358,1779373845000,-5639.45343996,0.00015,2]
[422772357,1779373845000,-12300.00043048,0.00015,2]
[422772360,1779373846000,-1050.12401864,0.00015,2]
[422772361,1779373847000,-3238.40276751,0.00015,2]
[422772410,1779373849000,-8508.31676163,0.00015,2]
[422772413,1779373850000,-4149.0971394,0.00015,2]
[422772412,1779373850000,-1198.20846186,0.00015,2]
[422772411,1779373850000,-14744.36127053,0.00015,2]
[422772414,1779373850000,-6752.17,0.00015,2]
[422772436,1779374132000,-1160.0,0.00014899,2]
[422772430,1779374132000,-500.0,0.00014539,3]
[422772431,1779374132000,-2206.13,0.0001459,2]
[422772432,1779374132000,-1509.77,0.0001476,2]
[422772434,1779374132000,-150.0,0.00014899,2]
[422772433,1779374132000,-2500.0,0.00014893,2]
[422772435,1779374132000,-314.214,0.00014899,2]
[422772438,1779374132000,-33198.9797,0.000149,2]
[422772429,1779374132000,-154.29,0.00014481,2]
[422772439,1779374132000,-2023.365287,0.000149,2]
[422772440,1779374132000,-1587.8228,0.000149,2]
[422772441,1779374132000,-2000.0,0.000149,2]
[422772442,1779374132000,-7085.57547138,0.000149,2]
[422772443,1779374132000,-300.0,0.0001492,2]
[422772444,1779374132000,-2328.47937317,0.00014946,2]
[422772446,1779374132000,-8633.0,0.00014959,2]
[422772445,1779374132000,-159.82,0.00014956,2]
[422772447,1779374132000,-133.55336845,0.0001497,2]
[422772437,1779374132000,-300.0,0.00014899,2]
[422772451,1779374952000,-216.22,7.226e-05,2]
[422772452,1779374952000,-1298.99,0.00013637,2]
[422772453,1779374952000,-166.66,0.00013699,2]
[422772454,1779374952000,-1060.23,0.00013731,2]
[422772456,1779374952000,-550.1,0.0001383,2]
[422772458,1779374952000,-215.89,0.00013902,2]
[422772457,1779374952000,-189.13,0.00013833,2]
[422772459,1779374952000,-500.0,0.00013976,2]
[422772460,1779374952000,-1298.99,0.00013977,2]
[422772461,1779374952000,-89.313808,0.00014,2]
[422772455,1779374952000,-159.52,0.00013763,2]
[422772462,1779374986000,-160.686192,0.00014,2]
[422772476,1779375033000,-3878.52,0.00014311,2]
[422772482,1779375033000,-150.0,0.00014599,2]
[422772484,1779375033000,-1298.99,0.00014659,2]
[422772480,1779375033000,-13700.0,0.000145,5]
[422772485,1779375033000,-3400.0,0.000147,5]
[422772479,1779375033000,-10300.0,0.000144,5]
[422772478,1779375033000,-180.92,0.00014362,2]
[422772477,1779375033000,-1298.99,0.00014318,2]
[422772475,1779375033000,-6800.0,0.000143,5]
[422772466,1779375033000,-300.0,0.0001421,2]
[422772471,1779375033000,-300.0,0.00014246,2]
[422772470,1779375033000,-300.0,0.00014246,2]
[422772473,1779375033000,-2500.0,0.0001427,2]
[422772472,1779375033000,-2500.0,0.0001427,2]
[422772468,1779375033000,-187.4,0.0001424,2]
[422772467,1779375033000,-2500.0,0.0001422,2]
[422772469,1779375033000,-300.0,0.00014246,2]
[422772465,1779375033000,-3400.0,0.000142,5]
[422772481,1779375033000,-215.23956962,0.00014595,2]
[422772474,1779375033000,-300.0,0.00014299,2]
[422772497,1779375033000,-6398.9204565,0.00014931,2]
[422772483,1779375033000,-17200.0,0.000146,5]
[422772488,1779375033000,-3400.0,0.000148,5]
[422772487,1779375033000,-131810.2016,0.000148,2]
[422772505,1779375033000,-500.0,0.00014969,2]
[422772507,1779375033000,-1509.58733625,0.0001497,2]
[422772509,1779375033000,-4063.5233099,0.0001497,2]
[422772503,1779375033000,-500.0,0.00014969,2]
[422772506,1779375033000,-500.0,0.00014969,2]
[422772508,1779375033000,-12607.5310393,0.0001497,2]
[422772504,1779375033000,-500.0,0.00014969,2]
[422772501,1779375033000,-525.68090872,0.00014969,2]
[422772499,1779375033000,-500.0,0.00014969,2]
[422772502,1779375033000,-500.0,0.00014969,2]
[422772498,1779375033000,-500.0,0.00014969,2]
[422772493,1779375033000,-955.64410926,0.000149,3]
[422772490,1779375033000,-5000.0,0.000149,2]
[422772494,1779375033000,-2028.04869425,0.000149,2]
[422772492,1779375033000,-1344.5771,0.000149,2]
[422772495,1779375033000,-3400.0,0.000149,5]
[422772496,1779375033000,-246.4472,0.000149,2]
[422772491,1779375033000,-25000.0,0.000149,3]
[422772489,1779375033000,-2000.0,0.000149,2]
[422772500,1779375033000,-500.0,0.00014969,2]
[422772486,1779375033000,-166.66,0.00014759,2]
[422772547,1779375034000,-500.0,0.00014999,2]
[422772548,1779375034000,-500.0,0.00014999,2]
[422772546,1779375034000,-500.0,0.00014999,2]
[422772545,1779375034000,-500.0,0.00014999,2]
[422772539,1779375034000,-500.0,0.00014999,2]
[422772555,1779375034000,-500.0,0.00014999,2]
[422772554,1779375034000,-500.0,0.00014999,2]
[422772544,1779375034000,-500.0,0.00014999,2]
[422772536,1779375034000,-500.0,0.00014999,2]
[422772553,1779375034000,-523.28200266,0.00014999,2]
[422772552,1779375034000,-500.0,0.00014999,2]
[422772551,1779375034000,-500.0,0.00014999,2]
[422772561,1779375034000,-500.0,0.00014999,2]
[422772550,1779375034000,-506.25793539,0.00014999,2]
[422772549,1779375034000,-500.0,0.00014999,2]
[422772556,1779375034000,-500.0,0.00014999,2]
[422772558,1779375034000,-249.5,0.00014999,2]
[422772557,1779375034000,-500.0,0.00014999,2]
[422772567,1779375034000,-500.0,0.00014999,2]
[422772560,1779375034000,-500.0,0.00014999,2]
[422772559,1779375034000,-500.0,0.00014999,2]
[422772562,1779375034000,-500.0,0.00014999,2]
[422772542,1779375034000,-500.0,0.00014999,2]
[422772566,1779375034000,-500.0,0.00014999,2]
[422772565,1779375034000,-500.0,0.00014999,2]
[422772543,1779375034000,-500.0,0.00014999,2]
[422772538,1779375034000,-500.0,0.00014999,2]
[422772529,1779375034000,-371.96913823,0.00014999,2]
[422772537,1779375034000,-500.0,0.00014999,2]
[422772563,1779375034000,-500.0,0.00014999,2]
[422772511,1779375034000,-43840.7814243,0.00014983,2]
[422772510,1779375034000,-173.115565,0.00014983,2]
[422772512,1779375034000,-34067.1245778,0.00014983,2]
[422772514,1779375034000,-195382.71619121,0.00014983,2]
[422772513,1779375034000,-111262.86480699,0.00014983,2]
[422772520,1779375034000,-588.1483846,0.00014999,2]
[422772518,1779375034000,-615.83075476,0.0001499,2]
[422772515,1779375034000,-3475.5737309,0.00014983,2]
[422772516,1779375034000,-615.83075476,0.0001499,2]
[422772519,1779375034000,-1000.0,0.00014999,2]
[422772517,1779375034000,-615.83075476,0.0001499,2]
[422772532,1779375034000,-500.0,0.00014999,2]
[422772530,1779375034000,-1097.29439826,0.00014999,5]
[422772524,1779375034000,-1349.28756852,0.00014999,5]
[422772525,1779375034000,-500.0,0.00014999,2]
[422772528,1779375034000,-500.0,0.00014999,2]
[422772527,1779375034000,-500.0,0.00014999,2]
[422772526,1779375034000,-500.0,0.00014999,2]
[422772522,1779375034000,-427.56429463,0.00014999,2]
[422772531,1779375034000,-500.0,0.00014999,2]
[422772534,1779375034000,-500.0,0.00014999,2]
[422772533,1779375034000,-501.82827039,0.00014999,2]
[422772535,1779375034000,-500.0,0.00014999,2]
[422772540,1779375034000,-500.0,0.00014999,2]
[422772541,1779375034000,-500.0,0.00014999,2]
[422772523,1779375034000,-500.0,0.00014999,2]
[422772564,1779375034000,-500.0,0.00014999,2]
[422772521,1779375034000,-72.43570537,0.00014999,2]
[422772568,1779375034000,-500.0,0.00014999,2]
[422772602,1779375034000,-500.0,0.00014999,2]
[422772600,1779375034000,-500.0,0.00014999,2]
[422772601,1779375034000,-500.0,0.00014999,2]
[422772604,1779375034000,-500.0,0.00014999,2]
[422772613,1779375034000,-500.0,0.00014999,2]
[422772614,1779375034000,-500.0,0.00014999,2]
[422772615,1779375034000,-500.0,0.00014999,2]
[422772605,1779375034000,-500.0,0.00014999,2]
[422772609,1779375034000,-500.0,0.00014999,2]
[422772606,1779375034000,-500.0,0.00014999,2]
[422772607,1779375034000,-500.0,0.00014999,2]
[422772611,1779375034000,-500.0,0.00014999,2]
[422772596,1779375034000,-500.0,0.00014999,2]
[422772623,1779375034000,-500.0,0.00014999,2]
[422772610,1779375034000,-500.0,0.00014999,2]
[422772617,1779375034000,-500.0,0.00014999,2]
[422772616,1779375034000,-153.48883412,0.00014999,2]
[422772626,1779375034000,-153.48883412,0.00014999,2]
[422772625,1779375034000,-500.0,0.00014999,2]
[422772618,1779375034000,-153.48883412,0.00014999,2]
[422772619,1779375034000,-500.0,0.00014999,2]
[422772620,1779375034000,-153.48883412,0.00014999,2]
[422772622,1779375034000,-153.48883412,0.00014999,2]
[422772621,1779375034000,-500.0,0.00014999,2]
[422772624,1779375034000,-153.48883412,0.00014999,2]
[422772569,1779375034000,-500.0,0.00014999,2]
[422772612,1779375034000,-500.0,0.00014999,2]
[422772597,1779375034000,-500.0,0.00014999,2]
[422772608,1779375034000,-195.82561154,0.00014999,2]
[422772598,1779375034000,-500.0,0.00014999,2]
[422772579,1779375034000,-500.0,0.00014999,2]
[422772599,1779375034000,-500.0,0.00014999,2]
[422772571,1779375034000,-500.0,0.00014999,2]
[422772572,1779375034000,-500.0,0.00014999,2]
[422772575,1779375034000,-500.0,0.00014999,2]
[422772573,1779375034000,-500.0,0.00014999,2]
[422772576,1779375034000,-500.0,0.00014999,2]
[422772574,1779375034000,-237.98252588,0.00014999,2]
[422772578,1779375034000,-500.0,0.00014999,2]
[422772577,1779375034000,-500.0,0.00014999,2]
[422772580,1779375034000,-500.0,0.00014999,2]
[422772581,1779375034000,-500.0,0.00014999,2]
[422772589,1779375034000,-500.0,0.00014999,2]
[422772588,1779375034000,-190.75438097,0.00014999,2]
[422772570,1779375034000,-500.0,0.00014999,2]
[422772582,1779375034000,-500.0,0.00014999,2]
[422772595,1779375034000,-500.0,0.00014999,2]
[422772603,1779375034000,-500.0,0.00014999,2]
[422772592,1779375034000,-500.0,0.00014999,2]
[422772585,1779375034000,-500.0,0.00014999,2]
[422772586,1779375034000,-500.0,0.00014999,2]
[422772593,1779375034000,-500.0,0.00014999,2]
[422772583,1779375034000,-500.0,0.00014999,2]
[422772590,1779375034000,-500.0,0.00014999,2]
[422772591,1779375034000,-430.94688997,0.00014999,2]
[422772594,1779375034000,-500.0,0.00014999,2]
[422772584,1779375034000,-500.0,0.00014999,2]
[422772587,1779375034000,-500.0,0.00014999,2]
[422772639,1779375035000,-78892.03896996,0.00015,2]
[422772627,1779375035000,-500.0,0.00014999,2]
[422772628,1779375035000,-153.48883412,0.00014999,2]
[422772629,1779375035000,-500.0,0.00014999,2]
[422772638,1779375035000,-670.58560358,0.00014999,2]
[422772640,1779375035000,-52620.95344125,0.00015,2]
[422772637,1779375035000,-300.0,0.00014999,2]
[422772632,1779375035000,-153.48883412,0.00014999,2]
[422772630,1779375035000,-153.48883412,0.00014999,2]
[422772635,1779375035000,-500.0,0.00014999,2]
[422772633,1779375035000,-500.0,0.00014999,2]
[422772634,1779375035000,-153.48883412,0.00014999,2]
[422772636,1779375035000,-153.48883412,0.00014999,2]
[422772641,1779375035000,-558.82834917,0.00015,2]
[422772631,1779375035000,-500.0,0.00014999,2]
[422772651,1779375037000,-4157.5475158,0.00015,2]
[422772652,1779375037000,-641.42128042,0.00015,2]
[422772654,1779375037000,-645.31994166,0.00015,2]
[422772653,1779375037000,-451.67184737,0.00015,2]
[422772657,1779375038000,-700.0,0.00015,2]
[422772656,1779375038000,-78999.99999998,0.00015,2]
[422772655,1779375038000,-317.0,0.00015,2]
[422772753,1779375040000,-18016.71273734,0.00015,2]
[422772751,1779375040000,-7925.0,0.00015,2]
[422772752,1779375040000,-132102.96938424,0.00015,2]
[422772755,1779375040000,-1163.53335284,0.00015,2]
[422772754,1779375040000,-92755.77173928,0.00015,2]
[422772759,1779375040000,-13777.48796778,0.00015,2]
[422772760,1779375040000,-1711.902861,0.00015,2]
[422772756,1779375040000,-6212.04392868,0.00015,2]
[422772758,1779375040000,-743.26422421,0.00015,2]
[422772757,1779375040000,-265.1286,0.00015,2]
[422772793,1779375043000,-403.73204355,0.00015,2]
[422772791,1779375043000,-6408.43379394,0.00015,2]
[422772795,1779375043000,-1688.81526876,0.00015,2]
[422772792,1779375043000,-7839.97237987,0.00015,2]
[422772796,1779375043000,-325.58015431,0.00015,2]
[422772797,1779375043000,-644.21387219,0.00015,2]
[422772800,1779375043000,-0.72484915,0.00015,2]
[422772794,1779375043000,-1071.18168082,0.00015,2]
[422772805,1779375045000,-21974.43652298,0.00015,2]
[422772809,1779375046000,-15943.61045705,0.00015,2]
[422772808,1779375046000,-981.44,0.00015,2]
[422772807,1779375046000,-362.424535,0.00015,2]
[422772806,1779375046000,-1626.85565591,0.00015,2]
[422773008,1779375114000,-1991.8915,0.0001487,2]
[422773010,1779375114000,-4723.71698092,0.000149,2]
[422773012,1779375114000,-3088.2483384,0.00014993,2]
[422773009,1779375114000,-301.9925,0.00014883,2]
[422773011,1779375114000,-164.29813334,0.000149,2]
[422773013,1779375114000,-151.0,0.00014997,2]
[422773015,1779375114000,-300.0,0.00015,2]
[422773016,1779375114000,-19968.16635534,0.00015,2]
[422773014,1779375114000,-150.0,0.00014999,2]
[422773029,1779376012000,-497.22025507,0.000143,2]
[422773031,1779376037000,500.0,0.00028767,120]
[422773034,1779376084000,500.0,0.00028767,120]
[422773038,1779376140000,1000.0,0.00028766,120]
[422773040,1779376164000,500.0,0.00028767,120]
[422773054,1779376231000,-300.0,0.00014399,2]
[422773056,1779376231000,-959.60937233,0.000144,5]
[422773050,1779376231000,-7019.43817563,0.000143,2]
[422773052,1779376231000,-200.0,0.00014382,2]
[422773053,1779376231000,-200.18,0.00014382,7]
[422773057,1779376231000,-1400.0,0.000145,5]
[422773051,1779376231000,-700.0,0.000143,5]
[422773048,1779376231000,-3.5,0.000143,2]
[422773049,1779376231000,-319.9194693,0.000143,2]
[422773046,1779376231000,-300.0,0.00014159,2]
[422773045,1779376231000,-500.0,0.00014118,3]
[422773055,1779376231000,-40.39062767,0.000144,5]
[422773047,1779376231000,-300.0,0.000142,5]
[422773063,1779376231000,-300.0,0.000148,5]
[422773062,1779376231000,-350.97,0.00014706,2]
[422773075,1779376231000,-183.9303855,0.000149,2]
[422773073,1779376231000,-183.9303855,0.00014899,2]
[422773069,1779376231000,-183.9303855,0.00014899,2]
[422773060,1779376231000,-848.18,0.00014633,2]
[422773068,1779376231000,-183.9303855,0.00014899,2]
[422773067,1779376231000,-183.9303855,0.00014899,2]
[422773071,1779376231000,-183.9303855,0.00014899,2]
[422773066,1779376231000,-156.202,0.00014899,2]
[422773064,1779376231000,-12040.1901,0.00014899,2]
[422773059,1779376231000,-1800.0,0.000146,5]
[422773058,1779376231000,-189.13,0.00014514,2]
[422773061,1779376231000,-300.0,0.000147,5]
[422773065,1779376231000,-341.258,0.00014899,2]
[422773116,1779376232000,-334.74761984,0.0001499,2]
[422773100,1779376232000,-300.0,0.000149,5]
[422773104,1779376232000,-150.0,0.000149,2]
[422773118,1779376232000,-334.74761984,0.0001499,2]
[422773131,1779376232000,-500.0,0.00014999,2]
[422773142,1779376232000,-500.0,0.00014999,2]
[422773133,1779376232000,-500.0,0.00014999,2]
[422773135,1779376232000,-500.0,0.00014999,2]
[422773138,1779376232000,-500.0,0.00014999,2]
[422773139,1779376232000,-500.0,0.00014999,2]
[422773141,1779376232000,-500.0,0.00014999,2]
[422773102,1779376232000,-183.9303855,0.000149,2]
[422773122,1779376232000,-43455.6270489,0.00014999,2]
[422773114,1779376232000,-578.19370214,0.00014969,2]
[422773094,1779376232000,-5000.0,0.000149,2]
[422773108,1779376232000,-3244.61131928,0.000149,2]
[422773098,1779376232000,-5256.26755253,0.000149,2]
[422773112,1779376232000,-200.0,0.0001491,2]
[422773106,1779376232000,-2415.75136053,0.000149,2]
[422773096,1779376232000,-154.2033858,0.000149,2]
[422773092,1779376232000,-163.32305236,0.000149,2]
[422773089,1779376232000,-760.45510734,0.000149,2]
[422773082,1779376232000,-183.9303855,0.000149,2]
[422773087,1779376232000,-1000.30473627,0.000149,2]
[422773078,1779376232000,-183.9303855,0.000149,2]
[422773084,1779376232000,-8239.24015639,0.000149,2]
[422773080,1779376232000,-183.9303855,0.000149,2]
[422773126,1779376232000,-548.53628496,0.00014999,2]
[422773110,1779376232000,-164.29813333,0.000149,2]
[422773128,1779376232000,-497.36685592,0.00014999,2]
[422773120,1779376232000,-334.74761984,0.0001499,2]
[422773143,1779376232000,-500.0,0.00014999,2]
[422773125,1779376232000,-3206.5145311,0.00014999,2]
[422773173,1779376232000,-74.61926866,0.00014999,2]
[422773169,1779376232000,-500.0,0.00014999,2]
[422773166,1779376232000,-500.0,0.00014999,2]
[422773170,1779376232000,-500.0,0.00014999,2]
[422773171,1779376232000,-500.0,0.00014999,2]
[422773168,1779376232000,-500.0,0.00014999,2]
[422773165,1779376232000,-500.0,0.00014999,2]
[422773163,1779376232000,-500.0,0.00014999,2]
[422773159,1779376232000,-500.0,0.00014999,2]
[422773160,1779376232000,-500.0,0.00014999,2]
[422773164,1779376232000,-500.0,0.00014999,2]
[422773161,1779376232000,-500.0,0.00014999,2]
[422773162,1779376232000,-500.0,0.00014999,2]
[422773157,1779376232000,-500.0,0.00014999,2]
[422773167,1779376232000,-500.0,0.00014999,2]
[422773156,1779376232000,-500.0,0.00014999,2]
[422773147,1779376232000,-500.0,0.00014999,2]
[422773145,1779376232000,-500.0,0.00014999,2]
[422773146,1779376232000,-500.0,0.00014999,2]
[422773148,1779376232000,-500.0,0.00014999,2]
[422773151,1779376232000,-500.0,0.00014999,2]
[422773144,1779376232000,-500.0,0.00014999,2]
[422773153,1779376232000,-500.0,0.00014999,2]
[422773150,1779376232000,-500.0,0.00014999,2]
[422773172,1779376232000,-500.0,0.00014999,2]
[422773152,1779376232000,-500.0,0.00014999,2]
[422773155,1779376232000,-500.0,0.00014999,2]
[422773154,1779376232000,-170.04069764,0.00014999,2]
[422773149,1779376232000,-500.0,0.00014999,2]
[422773158,1779376232000,-500.0,0.00014999,2]
[422773178,1779376237000,-425.38073134,0.00014999,2]
[422773180,1779376237000,-500.0,0.00014999,2]
[422773177,1779376237000,-9399.5935432,0.00014968,2]
[422773181,1779376237000,-500.0,0.00014999,2]
[422773179,1779376237000,-500.0,0.00014999,2]
[422773193,1779376238000,-500.0,0.00014999,2]
[422773183,1779376238000,-500.0,0.00014999,2]
[422773185,1779376238000,-500.0,0.00014999,2]
[422773192,1779376238000,-500.0,0.00014999,2]
[422773186,1779376238000,-500.0,0.00014999,2]
[422773188,1779376238000,-500.0,0.00014999,2]
[422773182,1779376238000,-500.0,0.00014999,2]
[422773194,1779376238000,-500.0,0.00014999,2]
[422773190,1779376238000,-500.0,0.00014999,2]
[422773184,1779376238000,-500.0,0.00014999,2]
[422773189,1779376238000,-500.0,0.00014999,2]
[422773187,1779376238000,-500.0,0.00014999,2]
[422773195,1779376238000,-250.0,0.00014999,2]
[422773191,1779376238000,-500.0,0.00014999,2]
[422773197,1779376238000,-500.0,0.00014999,2]
[422773196,1779376238000,-500.0,0.00014999,2]
[422773207,1779376238000,-500.0,0.00014999,2]
[422773203,1779376238000,-474.00317434,0.00014999,2]
[422773208,1779376238000,-500.0,0.00014999,2]
[422773204,1779376238000,-500.0,0.00014999,2]
[422773205,1779376238000,-439.07979313,0.00014999,2]
[422773209,1779376238000,-138.96979313,0.00014999,2]
[422773200,1779376238000,-239.59682966,0.00014999,2]
[422773202,1779376238000,-25.99682566,0.00014999,2]
[422773199,1779376238000,-3277.6288958,0.00014999,2]